bitfinex-derivatives/quotes_SOLF0:USTF0_20241227
["timestamp","ask_amount","ask_price","bid_price","bid_amount"]
[1735313980170,20.31131035,184.57,184.39,22.59301035]
[1735313980370,20.31131035,184.54,184.4,2.3194]
[1735313980680,20.31131035,184.54,184.41,4.6]
[1735313980875,27.59624845,184.54,184.41,4.6]
[1735313981074,7.2849381,184.54,184.42,20.31131035]
[1735313981273,2.7138,184.51,184.46,2.7144]
[1735313981680,2.7137,184.52,184.46,2.7144]
[1735313981877,7.2849381,184.54,184.46,2.7144]
[1735313982075,7.2849381,184.56,184.46,2.7144]
[1735313982270,7.2849381,184.56,184.42,20.31131035]
[1735313982477,2.7137,184.52,184.47,2.7143]
[1735313982678,2.7137,184.52,184.48,4.36]
[1735313983072,29.13975242,184.57,184.48,4.36]
[1735313983278,29.13975242,184.57,184.49,4.5958]
[1735313983478,29.13975242,184.57,184.49,7.0992]
[1735313984279,20.31131035,184.6,184.49,7.0992]
[1735313984685,2.713,184.57,184.52,2.7135]
[1735313985080,7.2849381,184.58,184.49,7.0992]
[1735313985380,7.2849381,184.58,184.54,2.7133]
[1735313985582,7.2849381,184.58,184.55,4.36]
[1735313985771,2.713,184.56,184.55,4.36]
[1735313987981,2.7134,184.54,184.5,4.36]
[1735313988381,7.2849381,184.61,184.5,4.36]
[1735313988781,2.7135,184.54,184.5,4.36]
[1735313988979,7.2849381,184.59,184.5,4.36]
[1735313989179,20.31131035,184.57,184.5,4.36]
[1735313989381,2.7138,184.51,184.5,4.36]
[1735313991779,2.7141,184.49,184.44,2.7147]
[1735313991987,9.5856381,184.56,184.43,4.36]
[1735313991988,20.31131035,184.54,184.43,4.36]
[1735313992198,2.7145,184.47,184.43,4.36]
[1735313992485,2.4734,184.53,184.43,4.36]
[1735313992683,2.4734,184.53,184.44,12.71802168]
[1735313992984,2.7139,184.51,184.46,2.7144]
[1735313993177,7.2849381,184.55,184.44,12.71802168]
[1735313993378,7.2849381,184.55,184.45,2.2898]
[1735313993579,29.13975242,184.56,184.5,12.71802168]
[1735313993782,29.13975242,184.56,184.51,6.795]
[1735313993978,29.13975242,184.56,184.52,2.7136]
[1735313994179,29.13975242,184.56,184.51,6.795]
[1735313994382,12.71802168,184.6,184.51,2.435]
[1735313994574,12.71802168,184.6,184.52,4.36]
[1735313995883,2.7135,184.54,184.52,4.36]
[1735313996282,12.71802168,184.6,184.52,4.36]
[1735313996283,2.7135,184.53,184.52,4.36]
[1735313996484,29.13975242,184.6,184.52,4.36]
[1735313997186,7.2849381,184.6,184.52,4.36]
[1735313997484,20.32891394,184.59,184.49,4.36]
[1735313997687,20.32891394,184.56,184.45,2.2898]
[1735313997983,20.32891394,184.53,184.43,4.36]
[1735313999187,27.61385204,184.53,184.43,4.36]
[1735314000189,2.7147,184.45,184.43,4.36]
[1735314000387,2.7147,184.45,184.4,2.7153]
[1735314000682,20.32891394,184.53,184.41,4.36]
[1735314000890,29.13975242,184.54,184.41,4.36]
[1735314001087,29.13975242,184.54,184.44,20.32891394]
[1735314001288,31.59605242,184.55,184.44,20.32891394]
[1735314001687,2.7138,184.51,184.45,2.7145]
[1735314001892,31.59605242,184.55,184.44,20.32891394]
[1735314002189,2.7138,184.51,184.47,2.7143]
[1735314002494,7.2849381,184.57,184.48,4.36]
[1735314003086,7.2849381,184.57,184.48,9.2777]
[1735314003287,7.2849381,184.58,184.5,20.32891394]
[1735314004388,7.2849381,184.58,184.49,2.4904]
[1735314004593,20.32891394,184.62,184.49,2.4904]
[1735314005087,2.4701,184.63,184.49,2.4904]
[1735314005692,7.2849381,184.62,184.5,4.36]
[1735314005991,29.13975242,184.62,184.53,20.32891394]
[1735314006597,29.13975242,184.62,184.56,20.32891394]
[1735314006787,29.13975242,184.62,184.59,20.32891394]
[1735314006988,25.31735242,184.67,184.59,40.65782788]
[1735314007201,25.31735242,184.67,184.63,20.32891394]
[1735314007398,25.31735242,184.67,184.64,4.36]
[1735314007897,2.4654,184.74,184.6,2.4009]
[1735314008095,22.79431394,184.74,184.61,4.36]
[1735314008494,2.7119,184.64,184.61,4.36]
[1735314009099,2.7117,184.66,184.61,4.36]
[1735314009299,22.79431394,184.74,184.61,4.36]
[1735314009799,2.7117,184.65,184.61,4.36]
[1735314009999,22.79431394,184.74,184.61,4.36]
[1735314010399,2.7114,184.68,184.61,4.36]
[1735314011200,22.79431394,184.74,184.61,4.36]
[1735314011393,22.79431394,184.74,184.62,4.36]
[1735314011990,2.4654,184.74,184.62,4.36]
[1735314012301,2.711,184.7,184.64,2.7118]
[1735314012595,2.4654,184.74,184.65,2.7117]
[1735314012803,2.711,184.7,184.62,24.68891394]
[1735314013301,2.4654,184.74,184.62,24.68891394]
[1735314013506,2.7108,184.71,184.62,24.68891394]
[1735314013899,2.4654,184.74,184.62,24.68891394]
[1735314014102,2.711,184.7,184.65,2.7117]
[1735314014309,2.4654,184.74,184.62,24.68891394]
[1735314014604,2.4654,184.74,184.62,4.36]
[1735314015405,2.7113,184.68,184.62,7.0721]
[1735314015906,2.4654,184.74,184.62,4.36]
[1735314016113,22.79431394,184.74,184.62,4.36]
[1735314016314,20.32891394,184.71,184.6,4.22]
[1735314016613,20.32891394,184.68,184.56,4.22]
[1735314016814,20.32891394,184.65,184.54,4.22]
[1735314017008,2.4912,184.64,184.54,4.22]
[1735314017711,2.4912,184.64,184.55,4.22]
[1735314018112,2.713,184.56,184.55,4.22]
[1735314018811,2.4912,184.64,184.55,4.22]
[1735314020112,2.4912,184.64,184.5,20.32891394]
[1735314020417,20.32891394,184.62,184.5,4.22]
[1735314020608,2.7128,184.58,184.5,4.22]
[1735314020813,2.4534,184.61,184.5,4.22]
[1735314021216,2.7135,184.53,184.5,4.22]
[1735314021915,2.4534,184.61,184.5,4.22]
[1735314022121,2.4534,184.61,184.53,20.32891394]
[1735314022319,2.4912,184.64,184.53,20.32891394]
[1735314022513,2.7121,184.63,184.57,2.7127]
[1735314022708,2.7121,184.63,184.58,4.22]
[1735314023213,2.4912,184.64,184.58,4.22]
[1735314024715,2.4912,184.64,184.58,0.4]
[1735314025316,2.4912,184.64,184.51,4.22]
[1735314025715,22.82011394,184.64,184.51,4.22]
[1735314025916,2.7136,184.52,184.46,2.7144]
[1735314026317,22.82011394,184.64,184.49,4.22]
[1735314027022,2.7137,184.52,184.48,20.32891394]
[1735314027215,20.32891394,184.61,184.49,4.22]
[1735314027522,2.7138,184.51,184.49,4.22]
[1735314029123,2.3926,184.6,184.49,4.22]
[1735314029423,2.7139,184.5,184.49,4.22]
[1735314029622,2.7139,184.5,184.45,20.32891394]
[1735314029825,2.7139,184.5,184.46,4.22]
[1735314030620,2.7139,184.5,184.45,2.7145]
[1735314030821,2.7139,184.5,184.46,4.22]
[1735314031022,6.6126,184.6,184.46,4.22]
[1735314031222,2.7141,184.49,184.46,4.22]
[1735314031424,20.32891394,184.58,184.43,2.3058]
[1735314031625,2.7143,184.48,184.44,4.22]
[1735314031823,2.5192,184.57,184.44,4.22]
[1735314032625,2.5468,184.56,184.44,4.22]
[1735314033328,2.714,184.5,184.44,6.9346]
[1735314033528,2.714,184.5,184.44,4.22]
[1735314034119,2.5468,184.56,184.44,4.22]
[1735314034321,2.7143,184.48,184.44,4.22]
[1735314034525,2.5468,184.56,184.44,4.22]
[1735314034826,2.5468,184.56,184.45,4.22]
[1735314035722,2.5468,184.56,184.43,2.3058]
[1735314036330,2.5468,184.56,184.43,6.5258]
[1735314036526,2.5468,184.56,184.43,26.85471394]
[1735314037226,2.5468,184.56,184.46,2.7145]
[1735314038632,2.7139,184.51,184.46,2.7145]
[1735314039122,2.5468,184.56,184.46,2.7145]
[1735314039328,2.7139,184.5,184.46,2.7145]
[1735314040030,2.7139,184.5,184.45,2.7146]
[1735314040725,2.5468,184.56,184.43,26.85471394]
[1735314041335,2.5468,184.56,184.43,29.56951394]
[1735314041629,20.32891394,184.55,184.38,4.7711]
[1735314041933,2.7146,184.46,184.4,2.7153]
[1735314042124,2.7146,184.46,184.39,4.14]
[1735314042323,2.5468,184.56,184.41,20.32891394]
[1735314042529,2.5468,184.56,184.44,23.04371394]
[1735314042732,2.5468,184.56,184.45,4.14]
[1735314043323,20.32891394,184.49,184.27,1.41828032]
[1735314043529,2.7149,184.44,184.34,2.7161]
[1735314043730,7.3447,184.48,184.35,4.14]
[1735314044131,2.7158,184.37,184.35,4.14]
[1735314044432,7.3447,184.48,184.33,2.3407]
[1735314044433,20.32891394,184.46,184.33,2.3407]
[1735314044624,20.32891394,184.46,184.33,4.14]
[1735314045430,20.32891394,184.46,184.3,2.5015]
[1735314045632,20.32891394,184.43,184.3,2.5015]
[1735314045833,24.46891394,184.43,184.3,2.5015]
[1735314046432,24.46891394,184.43,184.29,4.14]
[1735314046632,20.32891394,184.4,184.26,20.32891394]
[1735314046836,4.9561,184.39,184.26,24.46891394]
[1735314047036,7.4081,184.39,184.26,4.14]
[1735314047736,7.4081,184.39,184.27,4.16]
[1735314048137,2.717,184.29,184.25,2.5294]
[1735314048328,20.32891394,184.37,184.25,6.6894]
[1735314048834,20.32891394,184.34,184.2,2.5124]
[1735314049034,20.32891394,184.34,184.21,4.16]
[1735314049433,2.7173,184.27,184.21,4.16]
[1735314049833,2.7173,184.27,184.2,5.0418]
[1735314050029,2.7171,184.29,184.21,4.16]
[1735314050535,2.7171,184.29,184.22,20.32891394]
[1735314050733,4.16,184.38,184.26,2.7174]
[1735314050944,7.4081,184.39,184.27,4.16]
[1735314051142,7.4081,184.39,184.28,4.16]
[1735314051440,2.7167,184.32,184.28,4.16]
[1735314052944,2.717,184.3,184.28,4.16]
[1735314053333,7.4081,184.39,184.28,4.16]
[1735314053536,2.7163,184.35,184.29,2.717]
[1735314053839,7.4081,184.39,184.29,2.4994]
[1735314054343,7.4081,184.39,184.28,4.16]
[1735314054939,2.7163,184.34,184.24,2.7177]
[1735314055143,7.4081,184.39,184.25,4.16]
[1735314055347,7.4081,184.39,184.26,4.16]
[1735314055943,2.7164,184.33,184.28,2.7171]
[1735314056339,7.4081,184.39,184.26,4.16]
[1735314056845,2.7166,184.32,184.26,4.16]
[1735314057248,2.7164,184.33,184.28,2.7171]
[1735314057642,7.4081,184.39,184.25,20.32891394]
[1735314057846,7.4081,184.39,184.26,4.16]
[1735314058044,20.32891394,184.37,184.26,4.16]
[1735314058242,2.7163,184.34,184.28,2.7171]
[1735314058439,2.7163,184.34,184.26,4.16]
[1735314058644,7.4081,184.39,184.26,4.16]
[1735314059042,2.7164,184.33,184.28,2.717]
[1735314059242,7.4081,184.39,184.26,4.16]
[1735314059648,2.7163,184.34,184.29,2.717]
[1735314060151,7.4081,184.39,184.25,20.32891394]
[1735314060350,7.4081,184.39,184.26,4.16]
[1735314060744,2.7166,184.32,184.27,2.7172]
[1735314060942,7.4081,184.39,184.26,4.16]
[1735314061146,20.32891394,184.37,184.24,4.16]
[1735314061947,2.717,184.3,184.24,6.8777]
[1735314062247,20.32891394,184.37,184.24,4.16]
[1735314062445,7.4081,184.39,184.24,24.48891394]
[1735314062850,7.4081,184.39,184.27,20.32891394]
[1735314063045,7.4081,184.39,184.28,2.3411]
[1735314063451,2.7161,184.35,184.3,2.7168]
[1735314063649,7.4081,184.39,184.31,4.16]
[1735314063845,2.4122,184.39,184.31,4.16]
[1735314064152,2.7165,184.33,184.31,4.16]
[1735314064353,2.4122,184.39,184.31,4.16]
[1735314064752,4.7029,184.42,184.31,4.16]
[1735314065145,4.7029,184.42,184.21,2.3465]
[1735314065146,2.716,184.36,184.24,2.7176]
[1735314065351,20.32891394,184.34,184.22,5.0415]
[1735314065548,2.3297,184.33,184.23,4.16]
[1735314065947,2.7172,184.28,184.23,6.8777]
[1735314066150,2.3297,184.33,184.22,5.0415]
[1735314066543,2.7177,184.25,184.22,9.2015]
[1735314066746,2.7177,184.25,184.22,6.6825]
[1735314067550,2.7174,184.26,184.22,6.6825]
[1735314068158,2.7171,184.29,184.22,6.878]
[1735314068455,4.911,184.32,184.22,6.878]
[1735314068651,4.911,184.32,184.22,4.16]
[1735314068852,2.3297,184.33,184.18,4.16]
[1735314069054,4.8212,184.33,184.19,4.16]
[1735314069556,2.717,184.29,184.19,6.8785]
[1735314069755,4.8212,184.33,184.19,4.16]
[1735314070352,4.8212,184.33,184.2,4.16]
[1735314070845,2.7176,184.26,184.2,6.8783]
[1735314071050,4.8212,184.33,184.2,4.16]
[1735314071451,2.717,184.3,184.21,2.718]
[1735314071754,4.8212,184.33,184.2,4.16]
[1735314072257,2.7171,184.29,184.24,2.7177]
[1735314072759,4.8212,184.33,184.24,2.7177]
[1735314073361,2.717,184.29,184.2,4.16]
[1735314073554,2.5314,184.38,184.22,20.32891394]
[1735314073753,2.5314,184.38,184.25,20.32891394]
[1735314074056,2.7165,184.33,184.26,9.0302]
[1735314074252,2.5314,184.38,184.26,9.0302]
[1735314074551,2.7161,184.36,184.26,9.0302]
[1735314074757,4.84,184.4,184.31,2.7167]
[1735314074956,4.84,184.4,184.32,4.16]
[1735314076256,2.716,184.36,184.32,4.16]
[1735314076459,4.84,184.4,184.32,4.16]
[1735314077459,2.5373,184.42,184.32,4.16]
[1735314077651,7.2330246,184.44,184.32,4.16]
[1735314077849,2.7156,184.39,184.32,6.8764]
[1735314078051,9.6519246,184.45,184.32,4.16]
[1735314078254,20.32891394,184.44,184.32,4.16]
[1735314079162,2.716,184.36,184.33,4.16]
[1735314079355,20.32891394,184.44,184.33,4.16]
[1735314079556,2.7156,184.39,184.33,4.16]
[1735314079759,9.6519246,184.45,184.33,4.16]
[1735314079960,7.2330246,184.44,184.33,4.16]
[1735314080259,20.32891394,184.41,184.26,7.3289]
[1735314080661,2.396,184.4,184.26,7.3289]
[1735314081057,2.417,184.39,184.26,4.8702]
[1735314082159,7.2330246,184.37,184.24,56.46]
[1735314082364,2.3559,184.36,184.24,56.46]
[1735314082562,2.7166,184.32,184.27,4.16]
[1735314082763,2.7175,184.26,184.22,4.16]
[1735314083266,2.4217,184.32,184.22,4.16]
[1735314083469,2.3559,184.36,184.22,4.16]
[1735314083470,41.90682487,184.35,184.22,4.16]
[1735314083767,44.62292487,184.35,184.29,2.717]
[1735314084064,44.62292487,184.35,184.3,4.16]
[1735314084261,2.7164,184.33,184.3,4.16]
[1735314084458,7.2330246,184.35,184.3,4.16]
[1735314084654,7.2330246,184.39,184.3,4.16]
[1735314084967,7.2330246,184.39,184.31,4.9296]
[1735314085462,9.9486246,184.39,184.34,2.7163]
[1735314085666,7.2330246,184.39,184.31,4.9296]
[1735314085862,87.4192573,184.42,184.31,4.9296]
[1735314085863,4.8093,184.44,184.31,4.9296]
[1735314086662,4.8093,184.44,184.35,2.7161]
[1735314086663,2.7155,184.4,184.35,2.7161]
[1735314086859,2.7155,184.4,184.36,4.16]
[1735314087864,2.7156,184.39,184.36,4.16]
[1735314088164,25.13821394,184.44,184.36,4.16]
[1735314088362,20.32891394,184.41,184.3,4.16]
[1735314088657,4.8093,184.44,184.3,4.16]
[1735314089068,2.7154,184.4,184.34,2.7162]
[1735314089369,2.7154,184.4,184.31,20.32891394]
[1735314089665,2.7154,184.4,184.33,2.7163]
[1735314089864,2.7154,184.4,184.31,20.32891394]
[1735314090067,2.7151,184.42,184.31,20.32891394]
[1735314090265,2.3876,184.44,184.31,20.32891394]
[1735314090458,7.2330246,184.47,184.31,20.32891394]
[1735314090663,2.7151,184.43,184.36,2.7158]
[1735314090970,7.2330246,184.47,184.37,4.16]
[1735314091266,4.8235,184.48,184.37,4.16]
[1735314091768,29.08783892,184.51,184.37,24.48891394]
[1735314091964,29.08783892,184.51,184.41,2.7151]
[1735314092265,29.08783892,184.51,184.38,7.5194]
[1735314092468,2.7142,184.48,184.41,2.7151]
[1735314092659,2.7142,184.48,184.4,20.32891394]
[1735314092865,2.4054,184.54,184.45,2.7146]
[1735314093067,2.4054,184.54,184.46,4.16]
[1735314093564,2.7138,184.52,184.46,4.16]
[1735314093968,2.4054,184.54,184.46,4.16]
[1735314094170,5.1188,184.54,184.46,4.16]
[1735314094469,7.2330246,184.59,184.46,24.48891394]
[1735314094669,27.56193854,184.59,184.46,4.16]
[1735314094970,2.5141,184.58,184.46,4.16]
[1735314095169,2.7137,184.52,184.46,6.8745]
[1735314095572,2.5141,184.58,184.41,20.32891394]
[1735314095869,2.5141,184.58,184.45,2.7146]
[1735314096462,2.5141,184.58,184.42,4.14]
[1735314096666,2.5141,184.58,184.44,2.7148]
[1735314097068,2.7139,184.51,184.44,2.7148]
[1735314097263,20.32891394,184.53,184.38,25.34001394]
[1735314097468,25.11561394,184.5,184.39,4.14]
[1735314097660,25.11561394,184.5,184.37,4.14]
[1735314098172,2.7146,184.46,184.37,4.14]
[1735314098360,4.7867,184.5,184.38,20.32891394]
[1735314098566,2.4314,184.52,184.44,20.32891394]
[1735314098764,107.74817124,184.63,184.47,20.32891394]
[1735314098972,2.3277,184.62,184.51,2.7138]
[1735314099166,29.08783892,184.59,184.48,8.9414]
[1735314099363,29.08783892,184.59,184.5,20.32891394]
[1735314099564,29.08783892,184.59,184.53,2.7134]
[1735314099759,29.08783892,184.59,184.54,4.14]
[1735314099963,29.08783892,184.59,184.45,2.7145]
[1735314100259,2.7134,184.54,184.45,4.14]
[1735314100463,20.32891394,184.6,184.45,4.14]
[1735314100661,20.32891394,184.57,184.45,4.14]
[1735314101568,20.32891394,184.59,184.45,4.14]
[1735314101765,20.32891394,184.56,184.45,4.14]
[1735314102071,4.8544,184.55,184.45,4.14]
[1735314102466,2.7135,184.53,184.46,2.7145]
[1735314103171,2.713,184.57,184.45,24.46891394]
[1735314103376,4.9254,184.61,184.45,24.46891394]
[1735314103574,2.7127,184.58,184.51,2.7137]
[1735314103874,4.9254,184.61,184.52,4.2]
[1735314104170,2.7127,184.59,184.52,4.2]
[1735314104369,4.9254,184.61,184.52,4.2]
[1735314104974,2.713,184.56,184.52,4.2]
[1735314105173,4.9254,184.61,184.52,4.2]
[1735314105368,4.9254,184.61,184.45,20.32891394]
[1735314105572,2.7137,184.52,184.46,4.2]
[1735314106370,20.32891394,184.59,184.46,4.2]
[1735314107073,2.7135,184.53,184.47,2.7143]
[1735314107372,2.7135,184.53,184.48,4.2]
[1735314107574,2.7139,184.51,184.48,4.2]
[1735314107764,20.32891394,184.56,184.48,4.2]
[1735314107966,20.32891394,184.56,184.48,0.3533]
[1735314108163,20.32891394,184.56,184.42,4.2]
[1735314108572,20.32891394,184.53,184.4,4.2]
[1735314108773,20.32891394,184.5,184.37,4.2]
[1735314110169,2.7148,184.44,184.37,6.9158]
[1735314110369,20.32891394,184.47,184.32,76.74891394]
[1735314110571,2.4919,184.43,184.34,4.2]
[1735314111176,2.4919,184.43,184.32,56.42]
[1735314111475,2.4919,184.43,184.35,4.2]
[1735314111980,24.52891394,184.5,184.35,24.52891394]
[1735314112275,2.3306,184.52,184.38,20.32891394]
[1735314112276,2.4919,184.51,184.38,20.32891394]
[1735314112478,2.4919,184.51,184.41,20.32891394]
[1735314112675,29.08783892,184.54,184.42,4.2]
[1735314112978,2.7138,184.52,184.46,2.7145]
[1735314113174,29.08783892,184.54,184.45,4.2]
[1735314113478,2.7138,184.51,184.46,2.7145]
[1735314113777,2.3099,184.56,184.46,2.7145]
[1735314113979,2.3099,184.56,184.45,4.2]
[1735314114179,2.7138,184.51,184.45,6.9146]
[1735314114573,2.3099,184.56,184.45,4.2]
[1735314114776,2.7139,184.51,184.45,6.9146]
[1735314115278,22.63881394,184.56,184.45,4.2]
[1735314115478,22.63881394,184.56,184.38,20.32891394]
[1735314115479,20.32891394,184.53,184.38,20.32891394]
[1735314115669,20.32891394,184.53,184.39,4.2]
[1735314115870,2.7146,184.46,184.4,2.7154]
[1735314116176,26.83881394,184.56,184.39,4.2]
[1735314116376,2.7138,184.51,184.44,2.7148]
[1735314116582,26.83881394,184.56,184.44,2.7148]
[1735314116780,26.83881394,184.56,184.39,4.2]
[1735314117282,2.7142,184.48,184.39,4.2]
[1735314117488,20.32891394,184.53,184.39,4.2]
[1735314117781,2.7149,184.43,184.36,7.2756]
[1735314117978,2.7149,184.43,184.37,4.2]
[1735314118185,7.4748,184.47,184.37,4.2]
[1735314118483,27.80371394,184.47,184.34,4.2]
[1735314118682,27.80371394,184.47,184.32,56.42]
[1735314118882,2.715,184.43,184.33,4.2]
[1735314119186,27.80371394,184.47,184.33,4.2]
[1735314119779,2.715,184.43,184.33,6.9163]
[1735314120078,27.80371394,184.47,184.33,6.9163]
[1735314120378,2.7157,184.38,184.29,20.32891394]
[1735314120581,20.32891394,184.44,184.3,38.28948]
[1735314120780,20.32891394,184.44,184.3,34.08948]
[1735314121079,36.56263892,184.47,184.3,34.08948]
[1735314121080,20.32891394,184.41,184.3,38.28948]
[1735314121781,20.32891394,184.41,184.3,34.08948]
[1735314121980,20.32891394,184.38,184.3,34.08948]
[1735314122181,7.4247,184.37,184.3,34.08948]
[1735314122482,20.32891394,184.35,184.3,30.24288]
[1735314122682,2.717,184.31,184.3,2.16302]
[1735314124085,2.717,184.31,184.17,20.32891394]
[1735314124086,20.32891394,184.32,184.14,20.32891394]
[1735314124385,20.32891394,184.29,184.16,4.2]
[1735314125683,20.32891394,184.26,184.11,20.32891394]
[1735314125987,20.32891394,184.26,184.09,7.4343]
[1735314126283,20.32891394,184.23,184.09,4.8922]
[1735314126483,20.32891394,184.23,184.09,9.0922]
[1735314126785,2.7194,184.15,184.09,9.0922]
[1735314127186,4.2,184.26,184.11,20.32891394]
[1735314127380,4.2,184.28,184.13,2.7196]
[1735314127782,2.7182,184.23,184.11,20.32891394]
[1735314127983,20.32891394,184.26,184.11,20.32891394]
[1735314129286,20.32891394,184.26,184.1,2.5421]
[1735314129590,2.7195,184.14,184.1,6.7421]
[1735314129882,4.2,184.22,184.01,20.32891394]
[1735314130187,2.7198,184.12,184.04,23.04981394]
[1735314130487,2.7198,184.12,184.05,17.1474]
[1735314131082,2.7199,184.11,184.05,21.3074]
[1735314131484,4.2,184.19,184.05,21.3074]
[1735314131684,2.7198,184.12,184.05,21.3074]
[1735314132784,2.72,184.11,184.05,21.3074]
[1735314133887,2.7203,184.09,184.05,21.3074]
[1735314134384,20.32891394,184.17,184.05,17.1474]
[1735314134586,2.72,184.11,184.05,17.1474]
[1735314135083,4.2,184.19,184.05,19.8682]
[1735314135478,4.2,184.19,184.05,17.1474]
[1735314136991,2.7198,184.12,184.05,19.8682]
[1735314137592,2.7199,184.11,184.05,19.8682]
[1735314138191,2.7199,184.11,184.06,4.16]
[1735314139094,4.2,184.19,184.06,4.16]
[1735314139389,20.32891394,184.23,184.07,20.32891394]
[1735314139694,4.16,184.22,184.07,20.32891394]
[1735314139896,20.32891394,184.23,184.07,20.32891394]
[1735314139897,2.719,184.18,184.07,23.04941394]
[1735314140096,20.32891394,184.26,184.1,20.32891394]
[1735314140297,24.48891394,184.32,184.16,20.32891394]
[1735314140496,20.32891394,184.35,184.19,20.32891394]
[1735314140895,4.16,184.37,184.22,20.32891394]
[1735314141103,49.41675286,184.38,184.26,2.7176]
[1735314141293,29.08783892,184.38,184.27,2.5321]
[1735314141491,20.32891394,184.41,184.27,2.5321]
[1735314141691,2.7162,184.36,184.27,5.2495]
[1735314142004,20.32891394,184.41,184.28,4.16]
[1735314142190,2.7163,184.36,184.28,6.8774]
[1735314142391,20.32891394,184.41,184.28,4.16]
[1735314143603,2.7163,184.36,184.28,4.16]
[1735314144195,2.7163,184.36,184.29,4.16]
[1735314144601,20.32891394,184.41,184.29,4.16]
[1735314144798,2.7164,184.35,184.29,4.16]
[1735314147108,2.7166,184.34,184.29,4.16]
[1735314148602,2.716,184.38,184.31,2.7169]
[1735314148807,20.32891394,184.44,184.29,24.48891394]
[1735314149004,20.32891394,184.47,184.32,20.32891394]
[1735314149203,2.7152,184.44,184.36,2.7162]
[1735314149505,22.13179692,184.5,184.37,6.7126]
[1735314149706,2.7162,184.37,184.33,4.8786]
[1735314149905,20.32891394,184.44,184.33,4.8786]
[1735314150298,2.7165,184.34,184.33,4.8786]
[1735314151311,2.7163,184.36,184.3,4.16]
[1735314151503,20.32891394,184.44,184.3,4.16]
[1735314151704,20.32891394,184.41,184.3,4.16]
[1735314152008,2.7168,184.32,184.3,4.16]
[1735314152710,20.32891394,184.35,184.24,2.5526]
[1735314153005,20.32891394,184.32,184.2,4.16]
[1735314153207,20.32891394,184.32,184.19,2.3819]
[1735314154804,4.16,184.33,184.18,9.0514]
[1735314154805,20.32891394,184.29,184.18,9.0514]
[1735314155012,20.32891394,184.29,184.18,2.4279]
[1735314155412,20.32891394,184.32,184.18,2.4279]
[1735314155613,20.32891394,184.32,184.19,2.4508]
[1735314155813,20.32891394,184.32,184.18,2.4279]
[1735314156013,20.32891394,184.29,184.18,2.4279]
[1735314156414,2.7177,184.26,184.18,2.4279]
[1735314156619,20.32891394,184.32,184.18,2.4279]
[1735314157615,20.32891394,184.29,184.18,2.4279]
[1735314158215,20.32891394,184.26,184.15,2.4508]
[1735314158915,2.7193,184.15,184.11,2.5568]
[1735314159217,20.32891394,184.26,184.11,2.5568]
[1735314159414,20.32891394,184.26,184.11,5.2765]
[1735314159615,20.32891394,184.23,184.11,2.5568]
[1735314160218,20.32891394,184.23,184.07,22.80451394]
[1735314160525,2.7199,184.11,184.08,4.22]
[1735314161017,20.32891394,184.23,184.08,4.22]
[1735314161219,2.7198,184.12,184.08,4.22]
[1735314161423,4.22,184.21,184.07,4.22]
[1735314161922,4.22,184.21,184.06,5.083]
[1735314162223,20.32891394,184.2,184.06,9.303]
[1735314163421,2.72,184.11,184.06,9.303]
[1735314163724,20.32891394,184.2,184.06,9.303]
[1735314164113,2.7197,184.12,184.06,9.303]
[1735314164317,2.7197,184.12,184.07,20.32891394]
[1735314164714,2.7196,184.13,184.07,20.32891394]
[1735314164928,20.32891394,184.23,184.07,20.32891394]
[1735314165114,24.54891394,184.23,184.07,20.32891394]